bitfinex/quotes_SOLUSD_20250721
["timestamp","ask_amount","ask_price","bid_price","bid_amount"]
[1753105696445,16.84468397,192.54,192.53,0.69]
[1753105697855,16.84468397,192.54,192.53,0.03]
[1753105702574,16.84468397,192.54,192.53,0.69]
[1753105703772,16.84468397,192.54,192.53,12.66223973]
[1753105704074,16.84468397,192.54,192.53,26.69]
[1753105704377,17.52468397,192.54,192.53,0.03]
[1753105704559,16.84468397,192.54,192.53,0.03]
[1753105705774,23.62292796,192.54,192.53,0.03]
[1753105705969,17.52468397,192.54,192.53,0.03]
[1753105706171,24.30292796,192.54,192.53,0.03]
[1753105706361,29.49665393,192.54,192.53,0.03]
[1753105707055,23.62292796,192.54,192.53,0.03]
[1753105708374,61.06292796,192.54,192.53,0.03]
[1753105711171,61.74292796,192.54,192.53,0.03]
[1753105711679,156.73665393,192.54,192.53,0.03]
[1753105714279,54.28468397,192.54,192.53,0.74]
[1753105715279,54.28468397,192.54,192.53,5.93399574]
[1753105715780,54.28468397,192.54,192.53,0.03]
[1753105716379,54.28468397,192.54,192.53,0.74]
[1753105718884,54.28468397,192.54,192.53,0.03]
[1753105719268,54.99468397,192.54,192.53,0.03]
[1753105719572,61.77292796,192.54,192.53,0.03]
[1753105720271,54.99468397,192.54,192.53,0.03]
[1753105720478,54.28468397,192.54,192.53,0.74]
[1753105720683,54.28468397,192.54,192.53,0.03]
[1753105720882,0.06,192.58,192.55,26.0]
[1753105721062,0.06,192.62,192.53,9.14554399]
[1753105721063,0.06,192.62,192.61,26.0]
[1753105721264,0.06,192.62,192.61,32.77824399]
[1753105721578,0.06,192.62,192.61,33.48824399]
[1753105721882,0.06,192.67,192.61,33.48824399]
[1753105722075,0.06,192.67,192.63,26.0]
[1753105722279,0.06,192.67,192.66,11.96873501]
[1753105722707,0.06,192.67,192.66,12.67873501]
[1753105722872,0.06,192.67,192.66,38.67873501]
[1753105723276,0.06,192.67,192.66,12.67873501]
[1753105725074,0.06,192.67,192.66,0.71]
[1753105725390,0.06,192.67,192.63,5.90125024]
[1753105725693,0.06,192.67,192.64,0.71]
[1753105726395,16.78468397,192.66,192.63,26.0]
[1753105726595,23.56292796,192.66,192.63,26.0]
[1753105726792,23.56292796,192.66,192.61,0.71]
[1753105726793,16.78468397,192.64,192.61,0.71]
[1753105727087,16.78468397,192.64,192.6,6.77824399]
[1753105727279,23.56292796,192.66,192.63,26.0]
[1753105727886,16.78468397,192.66,192.62,26.0]
[1753105728084,16.78468397,192.66,192.62,26.71]
[1753105728607,23.56292796,192.66,192.62,0.71]
[1753105728767,16.78468397,192.64,192.62,26.0]
[1753105728968,16.78468397,192.64,192.6,0.71]
[1753105728969,16.78468397,192.64,192.63,26.0]
[1753105729410,16.78468397,192.63,192.59,5.19215999]
[1753105729570,16.78468397,192.63,192.59,11.97040398]
[1753105729767,16.78468397,192.63,192.59,5.90215999]
[1753105729997,16.78468397,192.63,192.6,0.71]
[1753105730496,16.78468397,192.63,192.61,0.71]
[1753105732071,5.19051831,192.66,192.61,0.71]
[1753105732072,16.78468397,192.65,192.62,7.48824399]
[1753105732401,16.78468397,192.65,192.64,26.0]
[1753105732775,16.78468397,192.65,192.63,0.71]
[1753105732973,16.78468397,192.65,192.64,26.0]
[1753105733200,16.78468397,192.65,192.64,32.77824399]
[1753105733403,0.06,192.67,192.64,33.48824399]
[1753105733587,16.84468397,192.67,192.66,26.0]
[1753105734118,16.84468397,192.67,192.66,26.71]
[1753105734422,0.06,192.67,192.66,33.48824399]
[1753105734597,0.06,192.67,192.66,38.67873501]
[1753105735707,0.06,192.67,192.66,26.0]
[1753105740399,16.78468397,192.66,192.65,26.0]
[1753105740819,16.78468397,192.66,192.65,26.71]
[1753105741120,16.78468397,192.66,192.65,38.67900443]
[1753105743434,0.06,192.67,192.65,31.90076044]
[1753105743739,0.06,192.67,192.66,7.49824399]
[1753105745035,0.06,192.67,192.66,0.72]
[1753105745278,0.06,192.67,192.66,12.68873501]
[1753105746430,0.06,192.67,192.66,13.98585654]
[1753105747214,0.06,192.67,192.66,13.26585654]
[1753105747535,16.84468397,192.67,192.66,1.29712153]
[1753105747736,24.29292796,192.67,192.66,1.29712153]
[1753105748435,24.29292796,192.67,192.66,1.29729529]
[1753105748637,17.51468397,192.67,192.66,1.29729529]
[1753105749025,16.84468397,192.67,192.66,1.29729529]
[1753105749225,16.84468397,192.67,192.66,13.9860303]
[1753105749429,0.06,192.67,192.66,13.9860303]
[1753105749626,0.06,192.67,192.66,15.5338303]
[1753105749838,16.78468397,192.7,192.69,26.0]
[1753105750025,0.06,192.71,192.69,34.79553928]
[1753105750220,0.06,192.71,192.7,2.01729529]
[1753105750742,0.06,192.71,192.7,8.79553928]
[1753105751124,0.06,192.71,192.7,6.48670888]
[1753105751439,16.84468397,192.71,192.7,1.29714058]
[1753105751823,0.06,192.71,192.7,1.29714058]
[1753105753743,0.06,192.71,192.7,13.98479816]
[1753105754140,0.06,192.71,192.7,6.48655417]
[1753105754321,0.06,192.71,192.7,13.26479816]
[1753105754520,0.06,192.71,192.7,7.20655417]
[1753105754821,0.06,192.71,192.7,13.98479816]
[1753105755744,0.06,192.71,192.7,7.20655417]
[1753105755922,0.06,192.71,192.7,13.98479816]
[1753105756427,1e-08,192.71,192.7,22.27634215]
[1753105756840,1e-08,192.71,192.7,15.49809816]
[1753105757546,1e-08,192.71,192.7,22.27634215]
[1753105757956,1e-08,192.71,192.7,15.49809816]
[1753105758254,0.1,192.74,192.73,26.0]
[1753105758456,0.1,192.74,192.73,34.07538457]
[1753105758763,0.1,192.74,192.73,34.79538457]
[1753105758946,0.1,192.74,192.73,28.01714058]
[1753105759330,0.1,192.74,192.73,39.98399039]
[1753105759960,0.1,192.74,192.73,39.26399039]
[1753105760539,0.1,192.74,192.73,39.98399039]
[1753105760944,0.77,192.74,192.73,1.29714058]
[1753105761138,17.55468397,192.74,192.73,1.29714058]
[1753105761339,17.55468397,192.74,192.73,27.29714058]
[1753105761538,17.55468397,192.74,192.73,1.29714058]
[1753105761941,17.55468397,192.74,192.73,27.29714058]
[1753105762248,17.55468397,192.74,192.73,1.29714058]
[1753105762426,29.52126457,192.74,192.73,1.29714058]
[1753105762632,22.74302058,192.74,192.73,1.29714058]
[1753105763564,29.52126457,192.74,192.73,1.29714058]
[1753105763738,31.13546457,192.74,192.73,1.29714058]
[1753105764846,19.16888397,192.74,192.73,1.29714058]
[1753105765041,29.52126457,192.74,192.73,1.29714058]
[1753105766539,16.78468397,192.73,192.65,26.0]
[1753105766738,16.78468397,192.7,192.66,6.77824399]
[1753105766961,16.78468397,192.68,192.66,6.77824399]
[1753105767157,12.89330832,192.68,192.66,6.77824399]
[1753105767470,12.89330832,192.68,192.67,5.19022162]
[1753105767649,12.89330832,192.68,192.67,12.68846561]
[1753105768257,12.89330832,192.68,192.67,38.68846561]
[1753105769852,12.89330832,192.68,192.67,31.91022162]
[1753105770042,12.89330832,192.68,192.67,38.68846561]
[1753105770768,12.89330832,192.68,192.67,31.91022162]
[1753105770968,12.89330832,192.68,192.67,38.68846561]
[1753105771966,12.89330832,192.68,192.67,31.91022162]
[1753105772155,12.89330832,192.68,192.67,38.68846561]
[1753105772656,37.38,192.69,192.67,38.62846561]
[1753105772849,54.16468397,192.69,192.68,7.43824399]
[1753105773269,54.16468397,192.69,192.68,0.66]
[1753105773467,54.16468397,192.69,192.68,7.43824399]
[1753105775362,54.16468397,192.69,192.68,12.62819624]
[1753105775555,16.78468397,192.69,192.68,12.62819624]
[1753105775756,54.16468397,192.69,192.68,12.62819624]
[1753105775955,54.16468397,192.69,192.68,11.96819624]
[1753105776369,54.16468397,192.69,192.68,12.62819624]
[1753105778752,54.14468397,192.69,192.68,12.62819624]
[1753105779662,0.1,192.74,192.71,26.0]
[1753105779853,16.78468397,192.72,192.71,26.0]
[1753105780176,16.78468397,192.72,192.71,33.43824399]
[1753105781470,16.78468397,192.72,192.71,32.77824399]
[1753105781655,16.78468397,192.72,192.71,37.9673883]
[1753105781862,16.78468397,192.72,192.71,38.6273883]
[1753105782062,37.36,192.73,192.71,38.6273883]
[1753105782273,37.36,192.73,192.72,7.43824399]
[1753105782859,37.46,192.74,192.72,7.43824399]
[1753105783075,37.46,192.74,192.71,5.18914431]
[1753105783076,54.24468397,192.74,192.73,7.43824399]
[1753105783280,37.46,192.74,192.73,7.43824399]
[1753105783658,37.46,192.74,192.73,26.66]
[1753105783872,37.46,192.74,192.73,38.62684981]
[1753105784068,37.46,192.74,192.73,31.84860582]
[1753105784381,37.46,192.74,192.73,38.62684981]
[1753105784769,0.1,192.74,192.73,38.62684981]
[1753105785080,0.06,192.75,192.73,38.62684981]
[1753105785081,1e-08,192.75,192.73,38.62684981]
[1753105785383,1e-08,192.75,192.74,7.43824399]
[1753105785759,1e-08,192.75,192.74,12.6265806]
[1753105787184,54.14468397,192.78,192.77,26.0]
[1753105787562,54.14468397,192.78,192.77,32.77824399]
[1753105787764,54.14468397,192.78,192.77,37.96577316]
[1753105788273,1e-08,192.79,192.78,1.5121]
[1753105788476,1e-08,192.79,192.78,8.95034399]
[1753105788667,0.06,192.83,192.82,6.77824399]
[1753105789063,0.06,192.83,192.82,7.43824399]
[1753105789776,0.06,192.83,192.82,33.43824399]
[1753105789971,0.06,192.83,192.82,38.62442799]
[1753105792474,0.06,192.84,192.82,38.62442799]
[1753105792780,0.06,192.84,192.83,7.43824399]
[1753105793368,0.06,192.84,192.82,31.186184]
[1753105793564,0.06,192.84,192.83,7.43824399]
[1753105793972,0.06,192.84,192.83,31.84591505]
[1753105794370,0.06,192.84,192.83,38.62415904]
[1753105796986,0.1,192.87,192.84,1.6037]
[1753105797186,0.8857,192.92,192.83,31.84591505]
[1753105797187,0.8857,192.92,192.88,26.0]
[1753105797390,44.21824399,192.89,192.84,6.77824399]
[1753105797569,37.44,192.89,192.82,6.77824399]
[1753105797771,16.78468397,192.87,192.83,6.77824399]
[1753105797987,16.78468397,192.85,192.83,6.77824399]
[1753105798183,17.50468397,192.85,192.83,6.77824399]
[1753105798897,0.72,192.84,192.83,6.77824399]
[1753105799094,0.72,192.84,192.83,11.96415904]
[1753105799773,0.72,192.84,192.83,5.18591505]
[1753105800307,16.78468397,192.83,192.81,26.0]
[1753105800485,54.12468397,192.82,192.81,37.96464014]
[1753105801781,54.12468397,192.82,192.81,31.18639615]
[1753105801981,54.78468397,192.82,192.75,13.67983818]
[1753105802178,54.78468397,192.82,192.79,6.77824399]
[1753105802414,0.66,192.81,192.8,6.77824399]
[1753105802792,16.78468397,192.8,192.79,26.0]
[1753105803092,16.78468397,192.8,192.79,32.77824399]
[1753105803892,54.20468397,192.8,192.79,32.77824399]
[1753105804281,54.20468397,192.8,192.79,37.96523501]
[1753105804490,37.42,192.8,192.79,38.67523501]
[1753105804802,37.42,192.8,192.79,37.96523501]
[1753105805182,16.78468397,192.83,192.79,37.96523501]
[1753105805378,16.78468397,192.81,192.79,37.96523501]
[1753105805611,16.78468397,192.81,192.79,38.67523501]
[1753105806106,16.78468397,192.81,192.8,6.77824399]
[1753105806279,37.42,192.82,192.8,6.77824399]
[1753105806485,54.20468397,192.82,192.81,11.96469697]
[1753105806801,54.86468397,192.82,192.81,11.96469697]
[1753105807310,37.42,192.82,192.81,11.96469697]
[1753105807512,37.42,192.82,192.81,12.67469697]
[1753105807707,37.42,192.82,192.81,5.18645298]
[1753105807906,37.42,192.82,192.81,11.96469697]
[1753105808095,0.06,192.87,192.84,26.0]
[1753105808405,0.06,192.87,192.86,11.96335235]
[1753105808609,37.46,192.87,192.86,6.77824399]
[1753105808784,16.78468397,192.86,192.85,5.18534453]
[1753105808989,17.44468397,192.86,192.85,5.18534453]
[1753105809191,16.78468397,192.86,192.85,11.96358852]
[1753105810097,17.44468397,192.86,192.78,12.96781193]
[1753105810298,16.78468397,192.84,192.81,26.0]
[1753105810494,16.78468397,192.82,192.77,5.18752917]
[1753105810708,0.66,192.81,192.8,6.77824399]
[1753105811006,0.66,192.81,192.8,32.77824399]
[1753105811400,6.77824399,192.86,192.83,26.0]
[1753105811401,16.78468397,192.86,192.83,26.0]
[1753105811602,37.38,192.85,192.83,26.0]
[1753105811795,54.16468397,192.85,192.84,6.77824399]
[1753105812390,54.16468397,192.85,192.84,11.96389012]
[1753105812592,54.16468397,192.85,192.83,26.0]
[1753105812593,54.82468397,192.85,192.83,26.0]
[1753105812797,54.82468397,192.85,192.8,32.77824399]
[1753105812798,17.44468397,192.84,192.8,32.77824399]
[1753105813011,16.78468397,192.82,192.81,26.0]
[1753105813215,54.88468397,192.82,192.81,26.0]
[1753105813516,54.88468397,192.82,192.79,6.77824399]
[1753105813813,0.66,192.81,192.79,6.77824399]
[1753105814021,16.78468397,192.79,192.78,26.0]
[1753105814197,54.24468397,192.79,192.78,32.77824399]
[1753105814523,54.24468397,192.79,192.78,37.96550407]
[1753105815027,37.46,192.79,192.78,37.96550407]
[1753105816102,37.46,192.79,192.78,31.18726008]
[1753105816314,37.46,192.79,192.78,37.96550407]
[1753105816937,16.78468397,192.78,192.74,5.2182367]
[1753105817110,16.78468397,192.82,192.77,6.77824399]
[1753105817314,13.23364399,192.83,192.74,5.9282367]
[1753105817315,16.78468397,192.79,192.78,6.77824399]
[1753105817540,16.78468397,192.78,192.74,5.9282367]
[1753105817708,16.78468397,192.78,192.77,32.77824399]
[1753105818020,54.20468397,192.78,192.77,32.77824399]
[1753105818610,54.20468397,192.78,192.77,37.96577316]
[1753105818928,54.20468397,192.78,192.77,38.67577316]
[1753105819228,37.42,192.78,192.77,38.67577316]
[1753105820416,37.42,192.78,192.77,31.89752917]
[1753105820609,37.42,192.78,192.77,38.67577316]
[1753105821542,37.4,192.8,192.77,51.6445961]
[1753105821731,37.4,192.8,192.79,32.77824399]
[1753105822039,54.18468397,192.8,192.79,26.0]
[1753105822238,54.84468397,192.8,192.79,32.77824399]
[1753105822540,54.18468397,192.8,192.79,32.77824399]
[1753105822741,54.18468397,192.8,192.79,37.96523501]
[1753105825447,37.4,192.8,192.79,38.67523501]
[1753105825824,37.4,192.8,192.79,37.96523501]
[1753105827552,37.4,192.8,192.77,0.74]
[1753105827553,16.78468397,192.79,192.78,6.77824399]
[1753105827721,17.44468397,192.79,192.78,6.77824399]
[1753105827925,17.44468397,192.79,192.78,32.77824399]
[1753105828122,17.44468397,192.79,192.78,26.0]
[1753105828342,16.78468397,192.79,192.78,32.77824399]
[1753105829044,16.78468397,192.79,192.78,26.0]
[1753105829223,16.78468397,192.79,192.78,32.77824399]
[1753105829427,16.78468397,192.79,192.78,37.96550407]
[1753105831426,16.78468397,192.79,192.78,31.18726008]
[1753105831654,16.78468397,192.79,192.78,37.96550407]
[1753105832759,37.4,192.8,192.78,37.96550407]
[1753105833065,17.47468397,192.84,192.79,7.44824399]
[1753105833359,54.16468397,192.83,192.81,26.0]
[1753105833561,16.78468397,192.83,192.82,6.77824399]
[1753105833738,54.16468397,192.83,192.82,6.77824399]
[1753105834334,54.85468397,192.83,192.82,6.77824399]
[1753105834659,54.16468397,192.83,192.82,6.77824399]
[1753105834834,54.16468397,192.83,192.82,5.186184]
[1753105835159,54.16468397,192.83,192.82,11.96442799]
[1753105835553,54.85468397,192.83,192.82,5.186184]
[1753105836054,16.78468397,192.82,192.81,37.96463101]
[1753105836258,17.47468397,192.82,192.8,37.96493946]
[1753105836552,54.83468397,192.81,192.8,37.96493946]
[1753105836756,54.83468397,192.81,192.8,32.77824399]
[1753105837348,16.78468397,192.85,192.82,26.0]
[1753105837562,16.78468397,192.83,192.82,26.0]
[1753105837857,17.47468397,192.83,192.8,5.18672199]
[1753105838158,54.83468397,192.82,192.81,32.77824399]
[1753105838537,54.83468397,192.82,192.81,31.18645298]
[1753105838749,54.83468397,192.82,192.81,37.96469697]
[1753105839163,54.14468397,192.82,192.81,37.96469697]
[1753105839540,54.83468397,192.82,192.81,31.18645298]
[1753105839741,54.83468397,192.82,192.81,37.96469697]
[1753105839957,54.83468397,192.82,192.81,32.77824399]
[1753105840163,54.83468397,192.82,192.81,26.0]
[1753105840460,54.83468397,192.82,192.81,37.96469697]
[1753105841253,54.14468397,192.82,192.81,31.18645298]
[1753105841566,54.14468397,192.82,192.81,37.96469697]
[1753105842063,89.86,192.87,192.81,51.60082943]
[1753105842362,54.83468397,192.86,192.85,6.77824399]
[1753105842756,54.14468397,192.86,192.85,6.77824399]
[1753105844260,54.14468397,192.86,192.84,5.18561045]
[1753105844459,54.14468397,192.86,192.85,6.77824399]
[1753105844836,16.84468397,192.87,192.85,6.77824399]
[1753105845170,0.06,192.87,192.86,32.77824399]
[1753105845664,37.42,192.87,192.86,32.77824399]
[1753105845868,37.42,192.87,192.86,37.96335235]
[1753105848670,38.11,192.87,192.86,37.96335235]
[1753105849166,37.42,192.87,192.86,37.96335235]
[1753105850573,37.42,192.87,192.86,31.18510836]
[1753105850873,37.42,192.87,192.86,37.96335235]
[1753105851773,37.42,192.87,192.86,38.63335235]
[1753105852365,37.42,192.87,192.86,37.96335235]
[1753105852880,37.42,192.87,192.86,31.18510836]
[1753105853170,37.42,192.87,192.86,37.96335235]
[1753105853674,16.78468397,192.86,192.8,5.18672199]
[1753105853876,16.78468397,192.84,192.83,6.77824399]
[1753105854077,54.14468397,192.84,192.83,6.77824399]
[1753105854374,54.83468397,192.84,192.82,6.77824399]
[1753105854567,16.78468397,192.82,192.81,6.77824399]
[1753105854757,54.14468397,192.82,192.79,5.18677624]
[1753105855075,54.14468397,192.82,192.79,11.96502023]
[1753105855259,54.83468397,192.82,192.79,11.96502023]
[1753105855454,54.83468397,192.82,192.8,6.77824399]
[1753105855865,54.14468397,192.82,192.8,6.77824399]
[1753105856074,54.14468397,192.82,192.81,6.77824399]
[1753105856075,54.83468397,192.82,192.81,6.77824399]
[1753105856271,54.14468397,192.82,192.81,6.77824399]
[1753105856870,0.69,192.84,192.81,11.96468519]
[1753105857173,16.78468397,192.82,192.81,11.96468519]
[1753105857374,54.12468397,192.82,192.81,11.96468519]
[1753105858800,54.12468397,192.82,192.81,12.63468519]
[1753105859091,37.34,192.82,192.81,12.63468519]
[1753105860386,16.78468397,192.81,192.78,26.03]
[1753105860674,37.34,192.8,192.79,5.18698309]
[1753105860881,37.34,192.8,192.79,5.85698309]
[1753105861570,37.34,192.8,192.79,12.63522708]
[1753105863582,37.34,192.85,192.82,26.0]
[1753105863897,37.34,192.85,192.84,6.77824399]
[1753105864497,54.80468397,192.85,192.84,6.77824399]
[1753105864898,54.80468397,192.85,192.84,11.96389012]
[1753105865102,54.12468397,192.85,192.84,11.96389012]
[1753105865783,54.80468397,192.85,192.84,11.96389012]
[1753105866288,54.80468397,192.85,192.84,6.77824399]
[1753105866487,54.80468397,192.85,192.81,6.77824399]
[1753105866698,0.68,192.84,192.81,6.77824399]
[1753105866900,54.12468397,192.83,192.82,31.186184]
[1753105867105,54.12468397,192.83,192.82,37.96442799]
[1753105869005,37.34,192.83,192.82,38.63442799]
[1753105869376,0.06,192.87,192.82,38.63442799]
[1753105869603,0.06,192.87,192.86,6.77824399]
[1753105869797,38.2857,192.92,192.89,26.0]
[1753105870002,38.2857,192.92,192.9,26.0]
[1753105870302,38.2857,192.92,192.9,32.77824399]
[1753105870687,38.2857,192.92,192.9,26.0]
[1753105870688,0.68,192.91,192.9,26.0]
[1753105871288,38.2857,192.92,192.9,37.96227716]
[1753105871509,17.46468397,192.91,192.9,26.0]
[1753105871679,17.46468397,192.91,192.9,31.18403317]
[1753105871875,17.46468397,192.91,192.83,0.67]
[1753105872077,16.78468397,192.89,192.83,0.67]
[1753105872387,37.34,192.88,192.83,0.67]
[1753105872784,37.34,192.88,192.81,18.15258544]
[1753105872785,37.34,192.88,192.84,0.67]
[1753105873098,37.34,192.88,192.84,26.67]
[1753105873302,37.34,192.88,192.87,26.0]
[1753105873605,37.34,192.88,192.87,32.77824399]
[1753105874279,54.80468397,192.88,192.87,26.0]
[1753105874599,54.80468397,192.88,192.86,6.77824399]
[1753105874600,16.78468397,192.87,192.86,6.77824399]
[1753105874908,16.78468397,192.87,192.83,26.67]
[1753105875076,0.68,192.88,192.86,6.77824399]
[1753105875281,54.12468397,192.87,192.86,11.96335235]
[1753105877096,54.12468397,192.87,192.86,6.77824399]
[1753105877498,37.34,192.87,192.86,11.96335235]
[1753105877893,37.34,192.87,192.86,12.63335235]
[1753105878090,37.34,192.87,192.86,11.96335235]
[1753105878288,38.02,192.87,192.86,11.96335235]
[1753105879004,37.34,192.87,192.86,11.96335235]
[1753105879800,31.34,192.87,192.86,11.96335235]
[1753105882289,31.34,192.87,192.86,12.63335235]
[1753105882790,31.34,192.87,192.86,11.96335235]
[1753105882991,31.34,192.87,192.86,12.63335235]
[1753105886696,0.9457,192.92,192.89,26.0]
[1753105886909,37.32,192.91,192.89,26.0]
[1753105887108,38.0,192.91,192.9,6.77824399]
[1753105887290,16.78468397,192.9,192.89,26.0]
[1753105887496,17.46468397,192.9,192.89,32.77824399]
[1753105888195,17.46468397,192.9,192.89,6.77824399]
[1753105888589,17.46468397,192.9,192.88,6.77824399]
[1753105888802,37.32,192.89,192.87,5.18466805]
[1753105889000,54.10468397,192.89,192.88,6.77824399]
[1753105890205,54.10468397,192.89,192.88,11.9628147]
[1753105891209,16.78468397,192.89,192.88,11.9628147]
[1753105892813,17.45468397,192.89,192.88,11.9628147]
[1753105894108,16.78468397,192.89,192.88,11.9628147]
[1753105895526,16.78468397,192.88,192.86,26.03]
[1753105895694,17.45468397,192.88,192.86,0.03]
[1753105896022,16.78468397,192.89,192.87,32.77824399]
[1753105896229,17.45468397,192.89,192.88,6.77824399]
[1753105896403,0.06,192.9,192.88,6.77824399]
[1753105896721,0.06,192.9,192.89,33.48824399]
[1753105896901,0.9457,192.92,192.89,32.77824399]
[1753105897103,0.67,192.91,192.89,32.77824399]
[1753105897398,0.67,192.9,192.86,5.2151004]
[1753105897597,0.67,192.9,192.87,6.77824399]
[1753105898008,0.67,192.9,192.86,5.2151004]
[1753105898302,0.67,192.9,192.86,6.80824399]
[1753105898497,16.78468397,192.88,192.87,6.77824399]
[1753105900519,16.78468397,192.91,192.87,11.96300927]
[1753105900723,0.67,192.9,192.88,6.77824399]
[1753105904535,0.67,192.9,192.89,6.77824399]
[1753105904710,16.78468397,192.91,192.89,6.77824399]
[1753105904906,16.78468397,192.91,192.9,6.77824399]
[1753105905226,16.78468397,192.91,192.89,6.77824399]
[1753105905536,17.45468397,192.91,192.89,6.77824399]
[1753105906398,17.45468397,192.91,192.9,11.96227716]
[1753105906820,17.45468397,192.91,192.89,11.96249898]
[1753105907023,16.78468397,192.91,192.89,11.96249898]
[1753105907333,16.78468397,192.89,192.86,5.21503752]
[1753105907533,0.67,192.88,192.87,26.0]
[1753105907909,16.78468397,192.9,192.87,32.77824399]
[1753105908120,12.90747345,192.92,192.87,32.77824399]
[1753105908121,0.67,192.89,192.87,32.77824399]
[1753105908520,0.67,192.89,192.87,26.0]
[1753105909030,0.67,192.89,192.87,32.77824399]
[1753105909403,16.78468397,192.88,192.86,0.03]
[1753105909821,17.45468397,192.87,192.86,0.03]
[1753105913336,19.95179785,192.89,192.86,33.51824399]
[1753105913337,16.78468397,192.89,192.86,33.51824399]
[1753105913512,16.78468397,192.89,192.88,6.77824399]
[1753105913714,0.06,192.91,192.88,6.77824399]
[1753105913715,17.51468397,192.91,192.88,6.77824399]
[1753105913917,17.51468397,192.91,192.89,6.77824399]
[1753105913918,16.84468397,192.91,192.89,6.77824399]
[1753105914110,0.67,192.9,192.89,6.77824399]
[1753105914309,16.84468397,192.91,192.89,7.48824399]
[1753105914511,0.06,192.91,192.9,11.96227716]
[1753105914814,0.9457,192.92,192.9,11.96227716]
[1753105915133,17.73038397,192.92,192.9,6.77824399]
[1753105915330,17.45468397,192.91,192.86,0.03]
[1753105915508,24.23292796,192.91,192.86,6.80824399]
[1753105915713,24.23292796,192.91,192.86,0.03]
[1753105915714,16.78468397,192.89,192.86,0.03]
[1753105915928,16.78468397,192.89,192.87,1.29599438]
[1753105916136,16.78468397,192.9,192.88,1.29599438]
[1753105916314,16.78468397,192.9,192.86,6.80824399]
[1753105916315,16.78468397,192.9,192.89,1.29599438]
[1753105916510,12.90751989,192.92,192.89,1.2960268]
[1753105916731,54.75468397,192.91,192.9,1.2960268]
[1753105921910,54.75468397,192.91,192.9,1.29584491]
[1753105922515,16.78468397,192.91,192.9,13.25812207]
[1753105922726,54.08468397,192.91,192.9,13.25812207]
[1753105922932,37.3,192.91,192.9,13.25812207]
[1753105923126,37.3,192.91,192.9,8.0740889]
[1753105923339,0.9457,192.92,192.9,13.25812207]
[1753105923545,17.73038397,192.92,192.91,1.29584491]
[1753105923723,55.03038397,192.92,192.91,1.29584491]
[1753105924548,55.03038397,192.92,192.91,13.97785334]
[1753105924930,55.03038397,192.92,192.91,13.25785334]
[1753105925130,55.03038397,192.92,192.91,6.47960935]
[1753105925327,0.9457,192.92,192.91,13.97785334]
[1753105925519,38.2457,192.92,192.91,13.97785334]
[1753105926236,1e-08,192.92,192.91,13.97785334]
[1753105927831,1e-08,192.96,192.95,26.0]
[1753105928037,34.02460782,192.98,192.95,40.85233289]
[1753105928352,7.1,193.0,192.99,31.18161562]
[1753105928536,7.8431,193.1,192.99,31.18161562]
[1753105928537,37.3,193.05,192.99,46.75394851]
[1753105928841,37.28,193.06,193.04,6.77824399]
[1753105929046,54.06468397,193.06,193.05,8.0740889]
[1753105929428,54.77468397,193.06,193.05,1.29584491]
[1753105930133,60.84292796,193.06,193.05,1.29584491]
[1753105930524,66.02266482,193.06,193.05,1.29584491]
[1753105930749,66.73266482,193.06,193.05,1.29584491]
[1753105930934,16.78468397,193.05,193.01,26.0]
[1753105931140,16.78468397,193.03,193.02,1.29512201]
[1753105931440,54.06468397,193.03,193.02,1.29512201]
[1753105932649,66.73346984,193.03,193.02,1.29512201]
[1753105932854,79.68482455,193.03,192.94,0.72]
[1753105933143,16.78468397,192.96,192.95,27.29539245]
[1753105933325,60.84292796,192.96,192.95,27.29539245]
[1753105933522,60.84292796,192.96,192.95,1.29539245]
[1753105933950,60.84292796,192.96,192.95,28.01539245]
[1753105934345,60.84292796,192.96,192.95,2.01539245]
[1753105934546,44.05824399,192.96,192.95,2.01539245]
[1753105934748,44.05824399,192.96,192.95,28.01539245]
[1753105935754,44.05824399,192.96,192.95,2.01539245]
[1753105935949,44.05824399,192.96,192.95,28.01539245]
[1753105936326,37.28,192.96,192.95,28.01539245]
[1753105936527,37.28,192.96,192.95,27.29539245]
[1753105936829,44.05824399,192.96,192.95,2.01539245]
[1753105937029,37.28,192.96,192.95,28.01539245]
[1753105938425,0.71,193.04,192.96,26.0]